bitfinex/quotes_BTCUSD_20260126
["timestamp","ask_amount","ask_price","bid_price","bid_amount"]
[1769469071146,0.01132515,88299.0,88289.0,0.02548258]
[1769469071344,0.01179161,88300.0,88289.0,0.02548258]
[1769469071662,0.1246711,88299.0,88289.0,0.02548258]
[1769469071859,0.01132515,88299.0,88289.0,0.02548258]
[1769469072069,0.01179161,88300.0,88289.0,0.02548258]
[1769469072250,0.11334427,88299.0,88289.0,0.02548258]
[1769469072448,0.01179161,88300.0,88289.0,0.02548258]
[1769469072669,0.11334533,88299.0,88289.0,0.02548258]
[1769469072872,0.00046659,88300.0,88290.0,0.0254826]
[1769469076359,0.00046659,88300.0,88291.0,0.02416834]
[1769469080721,0.01132425,88306.0,88291.0,0.02416834]
[1769469080919,0.01132425,88306.0,88291.0,0.02463493]
[1769469081125,0.01132438,88305.0,88292.0,0.0850038]
[1769469081523,0.01132438,88305.0,88290.0,0.20853042]
[1769469081837,0.01198314,88290.0,88275.0,0.02416297]
[1769469082084,0.60077633,88284.0,88273.0,0.0002267]
[1769469082280,0.09914973,88283.0,88273.0,0.0002267]
[1769469082625,0.09914973,88283.0,88266.0,0.07192087]
[1769469082874,0.09914973,88283.0,88266.0,0.63878397]
[1769469083309,0.60077633,88284.0,88266.0,0.614621]
[1769469083529,0.60077633,88284.0,88267.0,0.63862607]
[1769469084938,0.61210341,88284.0,88267.0,0.63862607]
[1769469085491,0.60077633,88284.0,88267.0,0.63862607]
[1769469085953,0.61210341,88284.0,88267.0,0.63862607]
[1769469086193,0.60077633,88284.0,88267.0,0.63862607]
[1769469087181,0.61487101,88284.0,88267.0,0.63862607]
[1769469087388,0.0113272,88283.0,88267.0,0.63862607]
[1769469088175,0.60051695,88282.0,88267.0,0.02416297]
[1769469088535,0.05663732,88281.0,88267.0,0.02416297]
[1769469088755,0.65715384,88282.0,88267.0,0.02416297]
[1769469088756,0.61184428,88282.0,88267.0,0.02416297]
[1769469088984,0.62485008,88282.0,88266.0,0.0001579]
[1769469089770,0.62485008,88282.0,88270.0,0.37873759]
[1769469089987,0.01132643,88289.0,88271.0,0.6144631]
[1769469090204,0.06796041,88287.0,88271.0,0.6144631]
[1769469090353,0.01132682,88286.0,88271.0,0.6144631]
[1769469090551,0.06796125,88286.0,88271.0,0.6144631]
[1769469091090,0.06796179,88285.0,88271.0,0.6144631]
[1769469091288,0.01132708,88284.0,88271.0,0.6144631]
[1769469091919,0.0113272,88283.0,88271.0,0.6144631]
[1769469092198,0.0113272,88283.0,88266.0,0.02432087]
[1769469092199,0.60051695,88281.0,88266.0,0.02432087]
[1769469093771,0.01132695,88285.0,88266.0,0.02432087]
[1769469093968,0.6361769,88286.0,88266.0,0.63878397]
[1769469094194,0.60051695,88285.0,88266.0,0.63878397]
[1769469094366,0.6118439,88285.0,88266.0,0.63878397]
[1769469094563,0.0113272,88283.0,88266.0,0.63878397]
[1769469094934,0.60051695,88285.0,88266.0,0.63878397]
[1769469095137,0.6118439,88285.0,88267.0,0.02416297]
[1769469095674,0.06796248,88284.0,88267.0,0.02416297]
[1769469095877,0.66847877,88285.0,88267.0,0.02416297]
[1769469096214,0.01132708,88284.0,88267.0,0.02416297]
[1769469096413,0.60051695,88285.0,88267.0,0.02416297]
[1769469096620,0.6118439,88285.0,88267.0,0.02416297]
[1769469096816,0.06796271,88284.0,88267.0,0.02416297]
[1769469098037,0.06796363,88283.0,88267.0,0.02416297]
[1769469098213,0.65715364,88282.0,88267.0,0.02416297]
[1769469098405,0.60051695,88282.0,88267.0,0.02416297]
[1769469098607,0.61184428,88282.0,88267.0,0.02416297]
[1769469098808,0.60051695,88282.0,88267.0,0.02416297]
[1769469099016,0.10095539,88281.0,88267.0,0.02416297]
[1769469099500,0.11228285,88281.0,88267.0,0.02416297]
[1769469099904,0.0566396,88278.0,88266.0,0.0001579]
[1769469100109,0.01132823,88275.0,88266.0,0.0001579]
[1769469100371,0.60051695,88274.0,88266.0,0.0001579]
[1769469100572,0.0001579,88266.0,88255.0,0.22184]
[1769469101153,0.0001579,88266.0,88257.0,0.00019515]
[1769469102562,0.01148729,88266.0,88257.0,0.00019515]
[1769469102877,0.01148729,88266.0,88248.0,0.1743885]
[1769469102878,0.60036063,88264.0,88248.0,0.1743885]
[1769469103076,0.01148729,88266.0,88248.0,0.1743885]
[1769469103077,0.0001579,88266.0,88250.0,0.37873759]
[1769469103278,0.01132913,88268.0,88251.0,0.03653079]
[1769469103693,0.66814201,88269.0,88251.0,0.03653079]
[1769469103995,0.01132926,88267.0,88251.0,0.03653079]
[1769469104293,0.06797518,88268.0,88251.0,0.03653079]
[1769469104495,0.61149656,88268.0,88251.0,0.03653079]
[1769469104879,0.01132926,88267.0,88251.0,0.03653079]
[1769469105217,0.60016743,88268.0,88251.0,0.03653079]
[1769469109043,0.60016743,88268.0,88248.0,0.17452841]
[1769469109044,0.55242279,88278.0,88259.0,0.58308035]
[1769469109194,0.0001485,88279.0,88263.0,0.58308035]
[1769469109393,0.0001485,88279.0,88264.0,0.05372387]
[1769469109599,0.01147622,88279.0,88264.0,0.05372387]
[1769469109797,0.0001485,88279.0,88263.0,0.58308035]
[1769469109978,0.0001485,88279.0,88264.0,0.58308035]
[1769469110178,0.0001485,88279.0,88266.0,0.58308035]
[1769469110400,0.0001485,88279.0,88268.0,0.05605228]
[1769469111983,0.01147622,88279.0,88268.0,0.05605228]
[1769469112194,0.0001485,88279.0,88268.0,0.05605228]
[1769469112366,0.01147622,88279.0,88268.0,0.05605228]
[1769469112567,0.01132785,88278.0,88268.0,0.05605228]
[1769469112773,0.06796742,88278.0,88268.0,0.05605228]
[1769469112967,0.01132785,88278.0,88268.0,0.05605228]
[1769469113211,0.0679671,88278.0,88268.0,0.05605228]
[1769469113420,0.01132797,88277.0,88268.0,0.05605228]
[1769469113909,0.06796723,88278.0,88268.0,0.05605228]
[1769469114115,0.01132797,88277.0,88268.0,0.05605228]
[1769469114338,0.01132785,88278.0,88268.0,0.05589366]
[1769469114918,0.01132797,88277.0,88268.0,0.05589366]
[1769469115122,0.0113281,88276.0,88268.0,0.05589366]
[1769469115414,0.22653391,88289.0,88268.0,0.05589366]
[1769469115632,0.10847157,88299.0,88268.0,0.05589366]
[1769469115633,0.0679682,88277.0,88268.0,0.05589366]
[1769469116052,0.01132797,88277.0,88268.0,0.05589366]
[1769469116269,0.01132823,88275.0,88268.0,0.05589366]
[1769469116472,0.06796814,88277.0,88268.0,0.05589366]
[1769469116704,0.0113281,88276.0,88268.0,0.05589366]
[1769469116907,0.3902629,88280.0,88268.0,0.05589366]
[1769469117076,0.22654755,88282.0,88268.0,0.05589366]
[1769469117077,0.56375025,88281.0,88268.0,0.05589366]
[1769469117328,0.55242279,88281.0,88268.0,0.05589366]
[1769469118344,0.06796217,88285.0,88268.0,0.05589366]
[1769469118560,0.01132746,88281.0,88268.0,0.05589366]
[1769469118782,0.0113272,88283.0,88268.0,0.05589366]
[1769469118981,0.01132733,88282.0,88268.0,0.05589366]
[1769469119361,0.01132746,88281.0,88268.0,0.05589366]
[1769469120165,0.01132759,88280.0,88268.0,0.05589366]
[1769469120299,0.0679656,88280.0,88268.0,0.05589366]
[1769469120634,0.5,88280.0,88268.0,0.05589366]
[1769469120841,0.51132759,88280.0,88268.0,0.05589366]
[1769469121840,0.56796576,88280.0,88268.0,0.05589366]
[1769469122034,0.51132759,88280.0,88268.0,0.05589366]
[1769469122868,0.01132772,88279.0,88268.0,0.05589366]
[1769469123084,0.01132785,88278.0,88268.0,0.05589366]
[1769469126263,0.0113281,88276.0,88266.0,0.0001172]
[1769469126800,0.5,88280.0,88266.0,0.0001172]
[1769469126979,0.01777544,88285.0,88271.0,0.02455102]
[1769469127159,0.198375,88280.0,88274.0,0.58308035]
[1769469127367,0.06795557,88293.0,88273.0,0.58308035]
[1769469127586,0.01132618,88291.0,88276.0,0.02455102]
[1769469128036,0.06795718,88291.0,88276.0,0.02455102]
[1769469128377,0.06795669,88292.0,88276.0,0.02455102]
[1769469128589,0.01132618,88291.0,88276.0,0.02455102]
[1769469129150,0.01132631,88290.0,88276.0,0.02455102]
[1769469129347,0.55242279,88294.0,88277.0,0.58308035]
[1769469129583,0.56374769,88301.0,88282.0,0.58308035]
[1769469129784,0.11334602,88300.0,88284.0,0.60763137]
[1769469129990,0.56384279,88301.0,88284.0,0.60763137]
[1769469129991,0.55251789,88301.0,88284.0,0.60763137]
[1769469130224,0.11334453,88300.0,88284.0,0.60763137]
[1769469130426,0.56384279,88301.0,88268.0,0.0454]
[1769469130427,9.51e-05,88301.0,88290.0,0.37893531]
[1769469130633,9.51e-05,88301.0,88289.0,0.58308035]
[1769469133258,9.51e-05,88301.0,88290.0,0.37893531]
[1769469133436,9.51e-05,88301.0,88291.0,0.58308035]
[1769469137824,9.51e-05,88301.0,88283.0,0.02455102]
[1769469138028,0.01132502,88300.0,88280.0,0.37893531]
[1769469138206,0.01132566,88295.0,88281.0,0.17428]
[1769469138402,0.02487773,88295.0,88281.0,0.17428]
[1769469138603,0.02487773,88294.0,88281.0,0.17428]
[1769469140582,0.47186323,88297.0,88281.0,0.17428]
[1769469141483,0.47186323,88297.0,88276.0,0.02446578]
[1769469141682,0.47186323,88297.0,88277.0,0.63050313]
[1769469141906,0.47186323,88297.0,88277.0,0.6146288]
[1769469142941,0.05662948,88294.0,88277.0,0.6146288]
[1769469143090,0.48318889,88295.0,88277.0,0.6146288]
[1769469143439,0.47186323,88295.0,88277.0,0.6146288]
[1769469143644,0.47186323,88295.0,88277.0,0.59016302]
[1769469143846,0.47186323,88295.0,88278.0,0.6146288]
[1769469144259,0.48318889,88295.0,88278.0,0.6146288]
[1769469144960,0.47186323,88295.0,88278.0,0.6146288]
[1769469147016,0.48318889,88295.0,88278.0,0.6146288]
[1769469147732,0.47186323,88295.0,88278.0,0.6146288]
[1769469149046,0.48318889,88295.0,88278.0,0.6146288]
[1769469149373,0.47186323,88295.0,88278.0,0.6146288]
[1769469149731,0.03404102,88331.0,88287.0,0.59016302]
[1769469149732,0.44934618,88305.0,88287.0,0.59016302]
[1769469149935,0.44934618,88305.0,88287.0,0.6146288]
[1769469150157,0.50596846,88305.0,88287.0,0.6146288]
[1769469150385,0.01132477,88302.0,88287.0,0.6146288]
[1769469150768,0.06794866,88302.0,88287.0,0.6146288]
[1769469150982,0.01142,88301.0,88287.0,0.6146288]
[1769469151193,9.51e-05,88301.0,88287.0,0.6146288]
[1769469151390,9.51e-05,88301.0,88280.0,0.37893531]
[1769469151391,0.44934618,88297.0,88276.0,0.02446578]
[1769469151554,0.47186323,88296.0,88276.0,0.02446578]
[1769469151754,0.47186323,88296.0,88276.0,0.59016302]
[1769469151956,0.47186323,88296.0,88277.0,0.02446578]
[1769469152391,0.47186323,88296.0,88277.0,0.6146288]
[1769469152629,0.47186323,88296.0,88278.0,0.02446578]
[1769469152901,0.48318877,88296.0,88278.0,0.6146288]
[1769469153106,0.47186323,88296.0,88278.0,0.6146288]
[1769469154163,0.01132566,88295.0,88278.0,0.6146288]
[1769469154369,0.46067197,88294.0,88278.0,0.6146288]
[1769469154775,0.01132605,88292.0,88278.0,0.6146288]
[1769469155180,0.06795588,88293.0,88278.0,0.6146288]
[1769469155333,0.01132605,88292.0,88278.0,0.6146288]
[1769469155515,0.01132605,88292.0,88275.0,0.17424]
[1769469155854,0.37893531,88290.0,88275.0,0.17424]
[1769469156062,0.48318902,88294.0,88275.0,0.17424]
[1769469156218,0.5554959,88294.0,88275.0,0.17424]
[1769469156558,0.61212532,88294.0,88275.0,0.17424]
[1769469156903,0.01132592,88293.0,88275.0,0.17424]
[1769469157111,0.06795565,88293.0,88275.0,0.17424]
[1769469157316,0.01132592,88293.0,88275.0,0.17424]
[1769469157771,0.01132605,88292.0,88275.0,0.17424]
[1769469157981,0.06795658,88292.0,88275.0,0.17424]
[1769469158167,0.06795658,88292.0,88274.0,0.02446578]
[1769469158168,0.44934618,88289.0,88274.0,0.02446578]
[1769469158376,0.47186323,88289.0,88273.0,0.76440302]
[1769469159778,0.47186323,88289.0,88273.0,0.17424]
[1769469161485,0.01132631,88290.0,88273.0,0.17424]
[1769469161486,0.525507,88285.0,88273.0,0.17424]
[1769469161689,0.582142,88285.0,88273.0,0.17424]
[1769469161882,0.525507,88281.0,88269.0,0.02446578]
[1769469163418,0.02251705,88286.0,88269.0,0.02446578]
[1769469163670,0.55935087,88286.0,88269.0,0.02446578]
[1769469163875,0.525507,88286.0,88269.0,0.02446578]
[1769469164117,0.17424,88291.0,88272.0,0.03243533]
[1769469164292,0.17424,88291.0,88281.0,0.59016302]
[1769469164512,0.17424,88291.0,88282.0,0.03243533]
[1769469169795,0.01777317,88298.0,88282.0,0.03243533]
[1769469170019,0.37893531,88310.0,88289.0,0.56453605]
[1769469170261,0.37893531,88300.0,88290.0,0.04592922]
[1769469171693,0.37878801,88300.0,88290.0,0.04592922]
[1769469172244,0.0052693,88306.0,88290.0,0.04592922]
[1769469172452,0.0052693,88306.0,88290.0,0.04586291]
[1769469173292,0.01659355,88306.0,88290.0,0.04586291]
[1769469173468,0.07321507,88306.0,88290.0,0.04586291]
[1769469174302,0.01659355,88306.0,88290.0,0.04586291]
[1769469174798,0.0052693,88306.0,88290.0,0.04586291]
[1769469174966,0.01659355,88306.0,88290.0,0.04586291]
[1769469175167,0.37878801,88300.0,88290.0,0.04586291]
[1769469175785,0.0052693,88299.0,88277.0,0.56453605]
[1769469175967,0.0052693,88299.0,88278.0,0.56453605]
[1769469176163,0.0052693,88299.0,88280.0,0.02393286]
[1769469176354,0.0052693,88299.0,88281.0,0.02393286]
[1769469176967,0.0052693,88299.0,88282.0,0.02393286]
[1769469177663,0.0054826,88299.0,88282.0,0.02393286]
[1769469179264,0.0002133,88299.0,88282.0,0.02393286]
[1769469179505,0.0002133,88299.0,88285.0,0.56453605]
[1769469179724,0.0002133,88299.0,88288.0,0.02393286]
[1769469181337,0.0002133,88299.0,88290.0,0.56453605]
[1769469181559,0.0002133,88299.0,88291.0,0.02971137]
[1769469181808,0.0002133,88299.0,88291.0,0.035982]
[1769469184430,0.0002133,88299.0,88293.0,0.03935301]
[1769469188787,0.0002133,88299.0,88287.0,0.02393286]
[1769469193887,9.51e-05,88301.0,88287.0,0.02393286]
[1769469197157,9.51e-05,88301.0,88289.0,0.56453605]
[1769469197361,9.51e-05,88301.0,88282.0,0.02393286]
[1769469197532,9.51e-05,88301.0,88285.0,0.56453605]
[1769469197742,9.51e-05,88301.0,88287.0,0.56453605]
[1769469197937,9.51e-05,88301.0,88288.0,0.02393286]
[1769469198312,9.51e-05,88301.0,88290.0,0.02393286]
[1769469200141,9.51e-05,88301.0,88293.0,0.60747611]
[1769469200293,9.51e-05,88301.0,88296.0,0.02440919]
[1769469200479,9.51e-05,88301.0,88298.0,0.02440919]
[1769469200707,9.51e-05,88301.0,88299.0,0.02440919]
[1769469205323,9.51e-05,88301.0,88284.0,0.60747611]
[1769469205504,9.51e-05,88301.0,88283.0,0.02440919]
[1769469205673,9.51e-05,88301.0,88290.0,0.37878801]
[1769469205874,9.51e-05,88301.0,88292.0,0.02440919]
[1769469212474,9.51e-05,88301.0,88292.0,0.6318853]
[1769469222016,9.51e-05,88301.0,88292.0,0.62353158]
[1769469222217,9.51e-05,88301.0,88292.0,0.62265681]
[1769469224057,0.02350538,88300.0,88289.0,0.17424]
[1769469224237,9.51e-05,88301.0,88300.0,0.01]
[1769469224438,9.51e-05,88301.0,88294.0,0.60747611]
[1769469224659,0.0001479,88305.0,88294.0,0.60747611]
[1769469224823,0.00019453,88305.0,88296.0,0.60747611]
[1769469225966,0.06793664,88318.0,88296.0,0.60747611]
[1769469225967,0.24421255,88324.0,88296.0,0.6321223]
[1769469226168,0.02350538,88316.0,88296.0,0.6321223]
[1769469226367,0.11360625,88315.0,88296.0,0.6321223]
[1769469226559,0.11345941,88314.0,88296.0,0.6321223]
[1769469226756,0.00014684,88313.0,88296.0,0.02464619]
[1769469226965,0.11360625,88312.0,88296.0,0.02464619]
[1769469227229,0.11345941,88311.0,88296.0,0.02464619]
[1769469227432,0.11345941,88311.0,88288.0,0.000155]
[1769469227433,0.05662072,88307.0,88288.0,0.000155]
[1769469227639,0.00014684,88304.0,88294.0,0.17424]
[1769469227814,0.02365222,88303.0,88294.0,0.17424]
[1769469235789,0.02365222,88303.0,88294.0,0.17349656]
[1769469245103,0.02350538,88303.0,88294.0,0.17349656]
[1769469248689,0.01132323,88314.0,88295.0,0.63100547]
[1769469248926,0.12481436,88313.0,88295.0,0.63100547]
[1769469249156,0.02400703,88311.0,88295.0,0.63100547]
[1769469249377,0.02400703,88309.0,88295.0,0.63100547]
[1769469249628,0.13749803,88308.0,88295.0,0.63100547]
[1769469249852,0.113491,88307.0,88295.0,0.63100547]
[1769469250075,0.113491,88306.0,88295.0,0.63100547]
[1769469250264,0.02400703,88309.0,88295.0,0.63100547]
[1769469250493,0.11349059,88308.0,88295.0,0.63100547]
[1769469250719,0.13749762,88307.0,88294.0,0.17349656]
[1769469251001,0.11349059,88306.0,88294.0,0.17349656]
[1769469251173,0.02400703,88306.0,88294.0,0.17349656]
[1769469251521,0.09069582,88316.0,88294.0,0.17349656]
[1769469251720,0.13749448,88315.0,88295.0,0.63100547]
[1769469252066,0.11348745,88314.0,88300.0,0.37871363]
[1769469252282,0.11348745,88313.0,88300.0,0.37871363]
[1769469252572,0.11348745,88312.0,88300.0,0.37871363]
[1769469252906,0.11348745,88311.0,88300.0,0.37871363]
[1769469253138,0.11348745,88310.0,88300.0,1.0097191]
[1769469253370,0.02400703,88315.0,88300.0,1.0097191]
[1769469253371,0.02400703,88315.0,88300.0,0.37871363]
[1769469253569,0.113469,88314.0,88306.0,0.63100547]
[1769469253685,0.113469,88313.0,88306.0,0.63100547]
[1769469253897,0.02400703,88320.0,88306.0,0.63100547]
[1769469254097,0.02400703,88318.0,88301.0,0.63100547]
[1769469254467,0.02400703,88316.0,88301.0,0.63100547]
[1769469259895,0.02400703,88316.0,88301.0,0.63084683]
[1769469263717,0.000155,88321.0,88307.0,0.58304717]
[1769469263930,0.11333748,88320.0,88310.0,0.37871363]
[1769469264129,0.000155,88321.0,88310.0,0.37871363]
[1769469264333,0.000155,88321.0,88307.0,0.58304717]
[1769469265163,0.02717223,88321.0,88307.0,0.58304717]
[1769469268455,0.02717223,88321.0,88301.0,0.58304717]
[1769469268882,0.03151452,88318.0,88301.0,0.58304717]
[1769469270631,0.03376325,88317.0,88301.0,0.58304717]
[1769469273807,0.03376325,88317.0,88301.0,0.58298086]
[1769469278857,0.04050953,88316.0,88301.0,0.58298086]
[1769469280835,0.01132259,88319.0,88301.0,0.58298086]
[1769469281025,0.02374277,88319.0,88301.0,0.58304717]
[1769469281225,0.01132259,88319.0,88301.0,0.58304717]
[1769469281592,0.02374277,88318.0,88301.0,0.58304717]
[1769469282428,0.02374277,88317.0,88301.0,0.58304717]
[1769469283041,0.01132284,88317.0,88301.0,0.58304717]
[1769469283264,0.02374277,88316.0,88301.0,0.58304717]
[1769469283759,0.02374277,88316.0,88302.0,0.1742]
[1769469284097,0.02374277,88316.0,88302.0,0.75724717]
[1769469286884,0.02374277,88316.0,88302.0,0.58304717]
[1769469287091,0.02374277,88316.0,88303.0,0.1742]
[1769469288710,0.02385817,88316.0,88303.0,0.1742]
[1769469292342,0.11349203,88315.0,88303.0,0.1742]
[1769469292538,0.02475227,88315.0,88303.0,0.1742]
[1769469295648,0.0001154,88316.0,88306.0,0.5569974]
[1769469296025,0.02475227,88320.0,88310.0,0.37856655]
[1769469296190,0.11348967,88319.0,88310.0,0.37856655]
[1769469296391,0.11348967,88318.0,88310.0,0.37856655]
[1769469297615,0.11348967,88318.0,88306.0,0.5569974]
[1769469297848,0.02475227,88322.0,88308.0,0.37856655]
[1769469298059,0.11348688,88321.0,88308.0,0.93556395]
[1769469298263,0.11348688,88320.0,88308.0,0.93556395]
[1769469298471,0.02475227,88322.0,88308.0,0.93556395]
[1769469298677,0.11347823,88321.0,88308.0,0.93556395]
[1769469298895,0.11347823,88320.0,88308.0,0.93556395]
[1769469299091,0.02475227,88322.0,88308.0,0.93556395]
[1769469299303,0.32249349,88313.0,88301.0,0.1742]
[1769469299439,0.02475227,88312.0,88301.0,0.1742]
[1769469299639,0.01132348,88312.0,88301.0,0.1742]
[1769469299845,0.02475227,88311.0,88301.0,0.1742]
[1769469300645,0.32249349,88319.0,88301.0,0.23193726]
[1769469300846,0.02475227,88318.0,88302.0,0.5569974]
[1769469301519,0.32249349,88314.0,88301.0,0.1742]
[1769469301866,0.02475227,88312.0,88301.0,0.1742]
[1769469302388,0.22648698,88324.0,88293.0,0.0001481]
[1769469302389,0.0679468,88305.0,88293.0,0.0001481]
[1769469302531,0.01132387,88309.0,88293.0,0.0001481]
[1769469302532,0.02475227,88300.0,88293.0,0.0001481]
[1769469303543,0.02475227,88300.0,88287.0,0.1742]
[1769469304570,0.01515866,88300.0,88287.0,0.1742]
[1769469305471,0.01515866,88300.0,88287.0,0.7311974]
[1769469311303,0.38713487,88303.0,88287.0,0.7311974]
[1769469311472,0.02403249,88302.0,88287.0,0.7311974]
[1769469312107,0.03535726,88302.0,88287.0,0.7311974]
[1769469312290,0.02403249,88302.0,88287.0,0.7311974]
[1769469313082,0.03535726,88302.0,88287.0,0.7311974]
[1769469313319,0.02403249,88302.0,88287.0,0.7311974]
[1769469313736,0.03535726,88302.0,88287.0,0.7311974]
[1769469313948,0.02403249,88302.0,88287.0,0.7311974]
[1769469314194,0.03535726,88302.0,88287.0,0.7311974]
[1769469315461,0.02403249,88302.0,88287.0,0.7311974]
[1769469318134,0.03535726,88302.0,88287.0,0.7311974]
[1769469318558,0.03535726,88302.0,88287.0,0.72942054]
[1769469318775,0.0919812,88302.0,88287.0,0.72942054]
[1769469318993,0.03535726,88302.0,88287.0,0.72942054]
[1769469319911,0.01132477,88302.0,88287.0,0.72942054]
[1769469320083,0.01132477,88302.0,88288.0,0.02300874]
[1769469321098,0.0113249,88301.0,88288.0,0.02300874]
[1769469321300,0.38876323,88294.0,88276.0,0.02315684]
[1769469321724,0.01132605,88292.0,88276.0,0.02315684]
[1769469321890,0.38876323,88292.0,88276.0,0.02315684]
[1769469322468,0.38876323,88292.0,88285.0,0.00019473]
[1769469323305,0.03508561,88294.0,88285.0,0.00019473]
[1769469323519,0.02375982,88294.0,88285.0,0.00019473]
[1769469323728,0.01132541,88297.0,88285.0,0.00019473]
[1769469324166,0.01132566,88295.0,88285.0,0.00019473]
[1769469325315,0.06795381,88296.0,88285.0,0.00019473]
[1769469325767,0.01132566,88295.0,88285.0,0.00019473]
[1769469325976,0.01132554,88296.0,88285.0,0.00019473]
[1769469326283,0.01132566,88295.0,88285.0,0.00019473]
[1769469326491,0.06795331,88296.0,88285.0,0.00019473]
[1769469326492,0.01132554,88296.0,88285.0,0.00019473]
[1769469327716,0.01132566,88295.0,88285.0,0.00019473]
[1769469327906,0.01132554,88296.0,88285.0,0.00019473]
[1769469328118,0.01132566,88295.0,88285.0,0.00019473]
[1769469328478,0.01132566,88295.0,88280.0,0.63092083]
[1769469328479,0.01132566,88295.0,88280.0,0.62951638]
[1769469328600,7.393e-05,88295.0,88280.0,0.62951638]
[1769469328796,0.01139959,88295.0,88281.0,0.02346505]
[1769469329208,0.01132579,88294.0,88281.0,0.02346505]
[1769469330001,0.01139959,88295.0,88281.0,0.02346505]
[1769469330189,0.01132579,88294.0,88281.0,0.02346505]
[1769469330387,0.01139959,88295.0,88281.0,0.02346505]
[1769469330587,0.01132592,88293.0,88281.0,0.02346505]
[1769469331041,0.01139959,88295.0,88281.0,0.02346505]
[1769469331827,0.12292857,88294.0,88281.0,0.02346505]
[1769469332259,0.11160278,88294.0,88281.0,0.02346505]
[1769469332540,0.12292857,88294.0,88281.0,0.02346505]
[1769469333466,0.12292857,88294.0,88281.0,0.00907246]
[1769469333664,0.01132579,88294.0,88281.0,0.00907246]
[1769469333821,0.01139959,88295.0,88281.0,0.00907246]
[1769469334025,0.01132579,88294.0,88281.0,0.00907246]
[1769469334271,7.393e-05,88295.0,88281.0,0.00907246]
[1769469336203,0.38876323,88298.0,88281.0,0.00907246]
[1769469336445,0.38876323,88298.0,88282.0,0.02346505]
[1769469336446,0.00046651,88298.0,88282.0,0.02346505]
[1769469336647,0.00046651,88298.0,88286.0,0.02346505]
[1769469336804,0.00046651,88298.0,88287.0,0.02346505]
[1769469338835,0.00046651,88298.0,88280.0,0.37856655]
[1769469338836,0.01179179,88298.0,88280.0,0.37856655]
[1769469339173,0.01179179,88298.0,88276.0,0.0001481]
[1769469339174,0.06796335,88283.0,88276.0,0.0001481]
[1769469339432,0.37856655,88280.0,88269.0,0.02346505]
[1769469339596,0.39015364,88284.0,88269.0,0.02346505]
[1769469339773,0.37856655,88280.0,88269.0,0.02346505]
[1769469339982,0.39015364,88284.0,88269.0,0.02346505]
[1769469340183,0.02219762,88286.0,88270.0,0.60745578]
[1769469340402,1.05280655,88290.0,88271.0,0.02346505]
[1769469340565,1.05280655,88290.0,88270.0,0.37856655]
[1769469340566,0.67424,88290.0,88274.0,0.60745578]
[1769469340905,0.67424,88290.0,88276.0,0.63092083]
[1769469342093,1.05280655,88290.0,88276.0,0.63092083]
[1769469342641,1.05280655,88290.0,88276.0,0.02346505]
[1769469342947,0.11160278,88289.0,88275.0,0.0001901]
[1769469344377,1.06413286,88290.0,88275.0,0.0001901]
[1769469344981,1.12076462,88290.0,88275.0,0.0001901]
[1769469345447,0.01132643,88289.0,88275.0,0.0001901]
[1769469346420,0.97025277,88290.0,88275.0,0.0001901]
[1769469346838,0.01132682,88286.0,88275.0,0.0001901]
[1769469347076,0.01132682,88286.0,88266.0,0.0001526]
[1769469347077,0.42520887,88284.0,88266.0,0.0001526]
[1769469347277,0.37856655,88280.0,88266.0,0.0001526]
[1769469347477,0.37856655,88276.0,88266.0,0.0001526]
[1769469348050,0.57692376,88278.0,88266.0,0.0001526]
[1769469349230,0.58825161,88278.0,88266.0,0.0001526]
[1769469349437,0.57692376,88278.0,88266.0,0.0001526]
[1769469350263,0.66714404,88278.0,88266.0,0.0001526]
[1769469350732,0.37856655,88276.0,88266.0,0.0001526]
[1769469350909,0.0226511,88275.0,88266.0,0.0001526]
[1769469352070,0.03397933,88275.0,88266.0,0.0001526]
[1769469352287,0.03397933,88275.0,88257.0,0.02361765]
[1769469352288,0.57584671,88269.0,88257.0,0.0001526]
[1769469352500,0.57584671,88269.0,88249.0,0.56977487]
[1769469352501,0.57584671,88269.0,88249.0,0.59423528]
[1769469352911,0.01132913,88268.0,88248.0,0.0001526]
[1769469353083,0.0226511,88267.0,88248.0,0.0001526]
[1769469353376,0.0226511,88267.0,88248.0,0.56992747]
[1769469353579,0.0226511,88267.0,88248.0,0.57002257]
[1769469354145,0.03398036,88267.0,88248.0,0.57002257]
[1769469354370,0.03398036,88267.0,88248.0,0.56986997]
[1769469354612,0.09062667,88267.0,88248.0,0.56986997]
[1769469354794,0.01132939,88266.0,88248.0,0.56986997]
[1769469354995,0.0226511,88267.0,88248.0,0.56986997]
[1769469355613,0.0226511,88267.0,88248.0,0.59433038]
[1769469356272,0.0226511,88267.0,88248.0,0.56986997]
[1769469356457,0.0226511,88267.0,88251.0,0.02446041]
[1769469356659,0.0226511,88267.0,88252.0,0.56977487]
[1769469363368,0.9321296,88270.0,88252.0,0.59423528]
[1769469363561,0.94345847,88270.0,88253.0,0.02446041]
[1769469363790,0.9321296,88270.0,88253.0,0.59423528]
[1769469363935,0.9321296,88270.0,88254.0,0.02446041]
[1769469363936,0.37908506,88270.0,88254.0,0.02446041]
[1769469364299,0.37908506,88270.0,88257.0,0.59423528]
[1769469368820,0.011329,88269.0,88257.0,0.59423528]
[1769469369031,0.39041393,88270.0,88257.0,0.59423528]
[1769469369908,0.37908506,88270.0,88257.0,0.59423528]
[1769469370139,0.39041393,88270.0,88257.0,0.59423528]
[1769469370801,0.37908506,88270.0,88257.0,0.59423528]
[1769469371219,0.39041393,88270.0,88257.0,0.59423528]
[1769469372183,0.01132913,88268.0,88257.0,0.59423528]
[1769469372433,0.01132913,88268.0,88257.0,0.02446041]
[1769469372632,0.44705868,88270.0,88257.0,0.02446041]
[1769469372854,0.07577539,88269.0,88257.0,0.02446041]
[1769469373346,0.08710439,88269.0,88257.0,0.02446041]
[1769469373578,0.07577539,88269.0,88257.0,0.02446041]
[1769469373927,0.08710439,88269.0,88257.0,0.02446041]
[1769469374127,0.07577539,88269.0,88257.0,0.02446041]
[1769469374484,0.87908506,88270.0,88257.0,0.02446041]
[1769469374617,0.94705836,88270.0,88257.0,0.02446041]
[1769469374814,0.89041393,88270.0,88257.0,0.02446041]
[1769469375041,0.87908506,88270.0,88257.0,0.02446041]
[1769469376327,0.89041393,88270.0,88257.0,0.02446041]
[1769469376843,0.87908506,88270.0,88257.0,0.02446041]
[1769469377239,0.89041393,88270.0,88257.0,0.02446041]
[1769469377780,0.87908506,88270.0,88257.0,0.02446041]
[1769469381397,0.87908506,88270.0,88257.0,0.59924041]
[1769469382061,0.87908506,88270.0,88257.0,0.57478]
[1769469382262,0.87908506,88270.0,88259.0,0.57478]
[1769469382466,0.87908506,88270.0,88260.0,0.59900729]
[1769469383880,0.89041393,88270.0,88250.0,0.02422729]
[1769469384099,0.87908506,88270.0,88252.0,0.02422729]
[1769469384321,0.87908506,88270.0,88253.0,0.59900729]
[1769469387553,0.87908506,88270.0,88253.0,0.57478]
[1769469387757,0.87908506,88270.0,88255.0,0.57478]
[1769469387917,0.87908506,88270.0,88255.0,0.59900729]
[1769469390733,0.27309602,88270.0,88260.0,0.37908506]
[1769469390973,0.06796449,88283.0,88260.0,0.37908506]
[1769469390974,0.0113272,88283.0,88264.0,0.02422729]